bitfinex/quotes_ETHUSD_20250822
["timestamp","ask_amount","ask_price","bid_price","bid_amount"]
[1755874106551,9.69007845,4635.9,4635.8,0.02]
[1755874106708,9.69007845,4635.9,4630.9,0.108]
[1755874106709,0.2,4635.5,4630.9,0.108]
[1755874107041,2.287,4635.6,4629.5,0.4429]
[1755874107042,13.72184064,4632.4,4629.5,0.4429]
[1755874107241,3.03118406,4632.3,4628.4,1.659]
[1755874107450,6.31,4632.2,4630.9,0.15950657]
[1755874107632,6.7799,4632.2,4630.9,0.15950657]
[1755874107952,4.65,4632.1,4631.0,0.4644936]
[1755874108245,5.1199,4632.1,4630.9,0.15950657]
[1755874108403,1.659,4632.2,4631.0,0.0215936]
[1755874108602,4.65,4632.1,4631.0,0.0215936]
[1755874108799,1.659,4632.2,4631.0,0.0215936]
[1755874109054,1.659,4632.2,4631.0,2.15935616]
[1755874109055,4.649,4632.1,4631.0,2.15935616]
[1755874109235,4.649,4632.1,4631.1,0.4429]
[1755874110253,4.649,4632.1,4630.9,0.15950657]
[1755874110409,4.649,4632.1,4631.0,0.0215936]
[1755874110604,4.648,4632.0,4631.0,0.0215936]
[1755874110805,1.659,4632.2,4631.1,0.66]
[1755874111033,4.648,4631.9,4630.9,0.15950657]
[1755874111440,5.7486,4631.9,4630.9,0.15950657]
[1755874111740,5.7476,4631.9,4630.9,0.15950657]
[1755874112124,10.9336,4631.9,4630.8,0.021]
[1755874112706,10.9326,4631.9,4630.8,0.021]
[1755874112909,13.75154125,4631.9,4630.8,0.021]
[1755874113147,11.5926,4631.9,4630.8,0.021]
[1755874113356,5.186,4631.9,4630.8,0.021]
[1755874113511,1.66,4631.9,4630.8,0.021]
[1755874113713,6.306,4631.9,4630.8,0.021]
[1755874114217,6.306,4631.9,4631.1,0.4429]
[1755874114428,6.306,4631.9,4631.6,2.15903469]
[1755874114609,6.306,4631.9,4631.8,0.4629]
[1755874114949,0.77473821,4635.6,4631.8,0.4629]
[1755874114950,4.645,4632.3,4631.8,0.4629]
[1755874115253,4.645,4632.3,4631.9,0.78919]
[1755874115457,4.645,4632.3,4631.8,0.02]
[1755874115824,4.644,4632.2,4631.8,0.02]
[1755874116024,1.66,4632.9,4631.9,0.4429]
[1755874116212,1.6592,4633.0,4631.9,0.4429]
[1755874116413,4.643,4632.9,4632.2,2.15879761]
[1755874116609,1.66,4634.1,4632.7,2.15854319]
[1755874116851,4.643,4634.0,4632.8,0.5509]
[1755874117063,4.643,4634.0,4633.4,0.108]
[1755874117213,4.643,4634.0,4632.8,0.108]
[1755874117531,4.643,4634.0,4632.4,0.02158708]
[1755874117740,0.108,4633.5,4632.8,0.108]
[1755874117939,4.642,4633.4,4631.9,0.4429]
[1755874118108,0.108,4632.8,4632.1,0.108]
[1755874118314,4.641,4632.7,4632.1,0.108]
[1755874118951,4.641,4632.7,4631.9,0.108]
[1755874119152,4.641,4632.7,4631.8,0.02]
[1755874119153,0.108,4632.2,4631.8,0.02]
[1755874119455,4.64,4632.1,4631.8,0.02]
[1755874119616,0.108,4632.2,4631.8,0.02]
[1755874119825,4.64,4632.1,4631.8,0.02]
[1755874120027,1.66,4632.9,4631.9,0.4276]
[1755874120362,4.639,4632.8,4632.0,0.108]
[1755874120661,4.639,4632.8,4632.7,0.108]
[1755874121153,4.639,4632.8,4631.8,0.1836917]
[1755874121354,4.639,4632.8,4631.8,0.02]
[1755874121859,1.66,4632.9,4632.0,0.108]
[1755874122025,4.637,4632.7,4632.0,0.108]
[1755874122853,1.768,4632.9,4632.0,0.108]
[1755874123154,1.768,4632.9,4631.8,0.18520801]
[1755874123155,1.66,4632.9,4632.7,0.108]
[1755874123347,1.66,4632.9,4632.1,2.58644142]
[1755874123348,1.66,4632.9,4632.1,0.4276]
[1755874123524,1.66,4632.9,4632.1,0.27717435]
[1755874123860,1.66,4632.9,4631.8,0.18520801]
[1755874124055,0.108,4632.6,4631.9,0.108]
[1755874124359,1.66,4632.9,4631.8,0.61380801]
[1755874124558,1.66,4632.9,4632.4,0.108]
[1755874124927,4.636,4633.0,4631.9,3.0]
[1755874125123,4.636,4633.0,4632.7,0.108]
[1755874125430,4.636,4633.0,4631.8,0.18620801]
[1755874125842,0.4416,4632.9,4631.8,0.18620801]
[1755874127288,0.66,4632.8,4631.8,0.18620801]
[1755874127434,6.291,4632.7,4632.0,1.0]
[1755874127631,1.66,4632.7,4632.0,1.0]
[1755874127855,5.0716,4632.6,4632.0,1.0]
[1755874128059,0.4416,4632.6,4632.0,1.0]
[1755874128474,1.66,4632.7,4632.0,1.0]
[1755874128825,4.63,4632.6,4632.0,1.0]
[1755874129034,5.187,4633.2,4632.0,1.0]
[1755874129245,6.29,4633.1,4632.0,1.0]
[1755874129454,6.7316,4633.1,4632.0,1.0]
[1755874129761,1.1016,4633.0,4632.0,1.0]
[1755874129942,0.66,4633.0,4632.0,1.0]
[1755874130129,0.4416,4632.9,4632.0,1.0]
[1755874130767,4.628,4632.8,4632.0,1.0]
[1755874130951,0.50696,4632.7,4632.0,1.0]
[1755874131345,0.4416,4632.6,4632.0,1.0]
[1755874131966,0.50696,4632.7,4632.0,1.0]
[1755874132172,2.8079,4633.1,4632.0,1.0]
[1755874132378,4.626,4632.6,4632.0,1.0]
[1755874132582,1.66,4633.1,4632.0,1.0]
[1755874132788,4.626,4633.0,4632.0,1.0]
[1755874132950,1.66,4633.1,4632.0,1.0]
[1755874133150,4.625,4632.9,4632.0,1.0]
[1755874133463,4.625,4632.9,4632.1,0.14486]
[1755874133664,4.625,4632.9,4632.0,1.0]
[1755874134177,4.625,4632.8,4632.5,2.15862054]
[1755874134360,0.002,4633.8,4633.0,3.0]
[1755874134544,0.002,4633.8,4633.3,18.8876335]
[1755874134736,0.002,4633.8,4633.3,19.05255203]
[1755874134938,0.002,4633.8,4633.3,21.60124544]
[1755874135173,0.002,4633.8,4633.7,2.15810259]
[1755874135372,0.002,4633.8,4633.7,5.15810259]
[1755874135573,0.002,4633.8,4633.7,5.69370259]
[1755874136470,0.002,4633.8,4633.7,13.43077159]
[1755874136673,1.768,4635.3,4633.7,13.43077159]
[1755874136674,1.66,4635.3,4633.9,2.81799883]
[1755874136840,1.66,4635.3,4633.7,9.5049911]
[1755874136841,0.128,4635.8,4634.1,2.15791631]
[1755874137043,0.02,4635.8,4634.8,0.108]
[1755874137241,0.108,4635.5,4634.8,0.108]
[1755874137878,0.108,4635.5,4634.0,0.4276]
[1755874138174,0.4416,4635.4,4633.4,2.15824232]
[1755874138377,0.4416,4635.4,4632.8,0.02]
[1755874138546,0.108,4633.8,4633.2,0.108]
[1755874138745,0.68,4635.8,4632.8,0.02]
[1755874138746,6.278,4633.7,4632.8,0.02]
[1755874138978,0.4416,4634.4,4632.8,0.02]
[1755874138979,6.278,4633.6,4632.8,0.02]
[1755874139467,1.66,4633.6,4632.8,0.02]
[1755874140346,0.67186,4633.5,4632.8,0.02]
[1755874140749,0.4416,4633.4,4632.8,0.02]
[1755874141068,1.66,4633.6,4632.8,0.02]
[1755874141378,1.66,4633.6,4632.9,0.4276]
[1755874141580,1.66,4633.6,4632.8,0.02]
[1755874141787,1.069,4633.5,4632.8,0.02]
[1755874141964,1.069,4633.5,4632.0,1.0]
[1755874141965,0.66,4633.4,4632.0,1.0]
[1755874142280,1.069,4633.5,4630.5,0.5]
[1755874142281,0.66,4633.2,4630.5,0.5]
[1755874142490,4.613,4633.1,4630.5,0.5]
[1755874142791,5.0546,4633.1,4631.0,0.16552677]
[1755874142952,0.94706,4633.0,4631.0,0.16552677]
[1755874143354,0.4416,4632.9,4631.0,0.16552677]
[1755874143780,4.612,4632.8,4631.0,0.16552677]
[1755874143981,4.611,4632.7,4631.0,0.16552677]
[1755874144285,4.611,4632.6,4631.0,0.16552677]
[1755874144475,1.66,4632.5,4631.3,0.0225922]
[1755874144658,4.611,4632.4,4631.3,0.001]
[1755874145071,4.61,4632.3,4631.3,0.001]
[1755874145497,0.4416,4632.2,4631.3,0.001]
[1755874145869,0.4416,4632.1,4631.3,0.001]
[1755874146506,5.0506,4632.0,4631.3,0.001]
[1755874146864,5.0496,4631.9,4631.3,0.001]
[1755874147201,4.608,4631.9,4631.3,0.001]
[1755874147883,0.4077292,4632.3,4631.3,0.001]
[1755874148086,4.607,4632.2,4631.3,0.001]
[1755874148263,5.0748,4632.2,4631.3,0.001]
[1755874148466,0.4678,4632.1,4631.3,0.001]
[1755874148685,0.108,4631.9,4631.3,0.001]
[1755874149384,4.714,4631.9,4631.3,0.001]
[1755874149586,1.66,4632.5,4631.8,0.4781]
[1755874149587,0.108,4632.2,4631.8,0.4781]
[1755874149793,5.188,4634.5,4632.0,13.7293446]
[1755874149990,4.605,4633.7,4633.0,0.108]
[1755874150189,4.605,4633.7,4633.6,0.108]
[1755874150390,1.66,4634.0,4633.6,0.108]
[1755874150604,1.66,4634.0,4633.7,0.4571]
[1755874150785,1.66,4634.0,4633.1,2.15837746]
[1755874150965,1.66,4634.0,4633.6,2.15814025]
[1755874151303,1.66,4634.0,4633.2,0.4571]
[1755874151668,0.002,4634.2,4633.7,2.15810259]
[1755874151869,0.002,4634.2,4633.7,5.81810259]
[1755874152176,0.002,4634.2,4633.7,6.27520259]
[1755874152588,0.002,4634.2,4633.7,7.11854087]
[1755874152900,0.0192,4634.8,4634.7,2.15763695]
[1755874153271,0.0192,4634.8,4634.7,0.4571]
[1755874153470,0.0192,4634.8,4634.7,2.61473695]
[1755874153671,0.0192,4634.8,4634.7,0.4571]
[1755874154002,0.0192,4634.8,4634.2,0.56519079]
[1755874154170,0.0192,4634.8,4634.2,0.10809079]
[1755874154371,0.0192,4634.8,4633.3,0.4571]
[1755874154595,0.0192,4634.8,4633.4,3.0]
[1755874154899,0.0192,4634.8,4633.5,0.56154053]
[1755874155103,0.0192,4634.8,4633.6,3.02158149]
[1755874155473,0.0192,4634.8,4633.6,3.0]
[1755874155672,0.0192,4634.8,4633.3,0.4571]
[1755874156092,4.598,4634.7,4633.3,0.4571]
[1755874156298,0.46172,4634.6,4633.0,0.16025639]
[1755874156472,0.92952,4634.6,4632.0,0.56695554]
[1755874156668,0.92952,4634.6,4630.6,6.91922605]
[1755874156669,0.4678,4634.5,4630.7,0.4571]
[1755874156894,0.66,4634.1,4630.7,0.4571]
[1755874157201,6.254,4634.0,4631.0,2.15932325]
[1755874157419,6.254,4634.0,4631.3,0.4796922]
[1755874157420,1.1592,4633.9,4631.3,0.4796922]
[1755874157589,5.0628,4633.9,4631.3,0.4581]
[1755874157786,0.4678,4633.8,4631.3,0.001]
[1755874158326,1.659,4634.0,4631.3,0.001]
[1755874158514,1.659,4634.0,4631.9,0.47868941]
[1755874158814,4.594,4633.9,4632.5,2.1586538]
[1755874159116,5.2193,4633.9,4633.8,0.02]
[1755874159281,5.2183,4633.9,4633.8,0.02]
[1755874159817,1.0931,4633.9,4633.8,0.02]
[1755874160036,5.0598,4633.9,4633.8,0.02]
[1755874160323,1.659,4634.0,4633.8,0.02]
[1755874160621,4.7,4633.9,4633.8,0.02]
[1755874160789,5.1678,4633.9,4633.8,0.02]
[1755874161595,5.1658,4633.9,4633.8,0.02]
[1755874161809,11.00628945,4633.9,4633.8,0.02]
[1755874162121,0.66,4633.5,4632.8,0.02]
[1755874162426,0.108,4632.9,4632.8,0.02]
[1755874162592,12.204,4632.9,4632.8,0.02]
[1755874162783,8.0828,4632.9,4632.8,0.02]
[1755874162985,11.89108,4632.9,4632.8,0.02]
[1755874163203,16.48008,4632.9,4632.8,0.02]
[1755874163408,12.82008,4632.9,4632.8,0.02]
[1755874163613,7.4228,4632.9,4632.8,0.02]
[1755874163794,1.768,4632.9,4632.8,0.02]
[1755874164200,6.248,4632.9,4632.8,0.4771]
[1755874164592,6.247,4632.9,4632.8,0.4771]
[1755874164908,1.66,4633.9,4632.8,0.5851]
[1755874165104,4.587,4633.8,4633.2,2.15832781]
[1755874165304,4.587,4633.7,4633.3,0.4571]
[1755874165606,4.587,4633.7,4633.4,0.108]
[1755874166189,4.587,4633.7,4632.8,0.02]
[1755874166503,4.587,4633.7,4632.8,0.28357]
[1755874166684,4.587,4633.7,4632.8,0.02]
[1755874167637,0.66,4633.5,4632.8,0.02]
[1755874167934,0.66,4633.5,4630.6,0.16368484]
[1755874167935,3.0,4632.7,4628.2,1.03788839]
[1755874168101,3.66,4631.7,4627.9,0.4571]
[1755874168286,3.0,4631.3,4627.5,1.03788839]
[1755874168630,35.115,4631.6,4627.3,0.001]
[1755874168631,3.0,4630.0,4628.0,0.15967142]
[1755874168790,2.16030092,4629.0,4628.0,0.15967142]
[1755874168991,15.09,4628.9,4627.3,0.001]
[1755874169193,0.66,4628.7,4627.3,0.001]
[1755874169527,6.13778,4628.6,4627.3,0.001]
[1755874169890,1.55578,4628.6,4627.3,0.001]
[1755874170245,1.66,4628.8,4627.3,0.001]
[1755874170417,5.0498,4628.5,4627.3,0.001]
[1755874170592,1.66,4628.8,4627.3,0.001]
[1755874170788,4.582,4628.7,4627.3,0.001]
[1755874171023,1.66,4628.8,4627.3,0.02261087]
[1755874171223,1.66,4628.8,4627.3,0.001]
[1755874171224,0.4678,4628.6,4627.3,0.001]
[1755874171527,2.3448,4628.8,4627.4,0.4571]
[1755874171704,5.19,4630.2,4628.0,0.66]
[1755874171912,6.7078,4630.1,4627.9,0.4571]
[1755874172108,4.58,4630.0,4628.0,5.8836676]
[1755874172292,4.58,4630.0,4628.2,0.66]
[1755874172494,4.58,4630.0,4627.3,0.001]
[1755874172713,1.6108,4629.9,4627.5,0.4571]
[1755874173095,4.579,4629.8,4627.5,0.4571]
[1755874173301,1.6108,4629.9,4627.3,0.001]
[1755874173302,4.58,4629.7,4627.9,1.1171]
[1755874173502,4.58,4629.6,4627.9,1.1171]
[1755874173807,1.66,4630.1,4628.1,3.001]
[1755874174021,1.66,4630.1,4628.6,3.0]
[1755874174220,0.02,4629.8,4628.9,0.66]
[1755874174420,1.66,4630.1,4629.8,3.66]
[1755874174647,0.02,4630.8,4630.2,0.66]
[1755874174812,0.02,4631.8,4631.2,0.66]
[1755874175134,4.598,4631.8,4631.2,0.82572301]
[1755874175425,4.598,4631.8,4631.2,0.16572301]
[1755874175632,4.598,4631.8,4630.8,1.1171]
[1755874176236,5.0578,4631.8,4629.8,0.4571]
[1755874176438,5.0578,4631.8,4629.6,0.108]
[1755874176601,0.108,4630.1,4629.0,0.02160293]
[1755874176797,1.661,4630.0,4629.9,0.108]
[1755874177002,1.661,4630.7,4630.0,0.66]
[1755874177198,1.661,4630.7,4629.9,2.61694074]
[1755874177199,4.576,4630.6,4630.2,0.66]
[1755874177403,4.5752,4630.6,4630.3,0.4581]
[1755874177625,1.661,4630.7,4630.6,0.66]
[1755874177798,6.236,4630.7,4630.6,0.66]
[1755874178007,1.661,4630.7,4630.6,0.66]
[1755874178201,6.236,4630.7,4630.6,0.66]
[1755874178514,0.02,4631.8,4631.7,2.81903447]
[1755874178714,1.681,4632.8,4632.6,0.66]
[1755874178715,0.02,4632.8,4632.6,0.66]
[1755874178936,0.02,4632.8,4632.7,0.768]
[1755874179244,0.02,4632.8,4632.7,5.81856843]
[1755874179441,0.02,4632.8,4632.7,6.38356843]
[1755874179647,0.02,4632.8,4632.7,7.23779002]
[1755874179937,0.02,4632.8,4632.7,3.66]
[1755874180155,0.02,4632.8,4632.7,6.43379725]
[1755874180352,0.02,4632.8,4632.7,3.81822882]
[1755874180704,0.02,4632.8,4632.7,0.81822882]
[1755874180906,0.4559,4632.8,4630.6,0.457]
[1755874181221,1.661,4632.7,4629.8,0.457]
[1755874181420,4.78269,4632.6,4629.8,2.61689933]
[1755874181604,5.189,4632.5,4630.3,0.15992714]
[1755874182003,5.0069,4632.4,4630.3,0.15992714]
[1755874182437,3.0,4632.3,4630.3,0.001]
[1755874182755,3.4359,4632.3,4630.3,0.001]
[1755874182903,1.31959,4632.2,4630.3,0.001]
[1755874183107,0.66,4631.5,4630.3,0.001]
[1755874183414,0.66,4631.2,4628.8,0.02]
[1755874183606,0.66,4629.9,4627.3,0.16236719]
[1755874183808,0.66,4629.2,4627.3,0.001]
[1755874184029,3.28201588,4629.1,4627.3,0.001]
[1755874184244,3.0,4628.9,4627.3,0.001]
[1755874184409,3.0,4628.7,4627.3,0.001]
[1755874184746,0.55606669,4628.6,4627.3,0.001]
[1755874185038,7.567,4628.5,4627.3,0.001]
[1755874185240,4.568,4628.4,4627.3,0.001]
[1755874185440,1.66,4629.2,4627.4,2.16101486]
[1755874185639,4.568,4629.1,4627.3,0.661]
[1755874185812,1.66,4629.2,4627.4,0.0216104]
[1755874186008,1.66,4629.2,4627.6,0.66]
[1755874186240,4.567,4629.1,4627.8,0.66]
[1755874186434,1.66,4629.2,4627.9,0.02160807]
[1755874186743,1.661,4629.1,4628.2,0.66]
[1755874186947,1.661,4629.1,4628.6,0.66]
[1755874187109,1.661,4629.1,4629.0,0.66]
[1755874187438,5.191,4631.2,4629.0,1.51073311]
[1755874187439,4.566,4629.8,4629.0,1.51073311]
[1755874187640,4.566,4629.7,4629.3,0.66]
[1755874187805,1.661,4629.8,4629.4,2.16009787]
[1755874188009,1.661,4629.8,4629.7,0.66]
[1755874188420,1.661,4629.8,4629.4,3.66]
[1755874188645,1.661,4629.8,4629.0,0.66]
[1755874188850,1.661,4629.8,4629.1,0.457]
[1755874189033,1.661,4629.8,4629.4,0.66]
[1755874189235,5.43507831,4633.6,4629.4,0.66]
[1755874189236,1.661,4630.8,4630.5,0.66]
[1755874189435,4.564,4631.2,4629.8,0.66]
[1755874189621,4.5632,4631.2,4630.7,0.66]
[1755874189813,4.5632,4631.2,4631.0,0.66]
[1755874190012,4.5632,4631.2,4630.0,0.66]
[1755874190213,0.002,4631.1,4630.0,1.39898564]
[1755874190415,4.565,4631.1,4630.1,0.66]
[1755874190614,1.661,4631.4,4631.0,0.768]
[1755874190841,4.562,4631.3,4631.0,1.225]
[1755874191145,0.4359,4632.7,4629.2,2.16019735]
[1755874191146,1.661,4632.5,4631.3,0.108]
[1755874191313,1.661,4632.5,4631.8,0.66]
[1755874191513,6.222,4632.5,4632.4,0.66]
[1755874191743,1.769,4633.5,4632.7,2.81856843]
[1755874191930,1.661,4633.5,4632.7,2.81856843]
[1755874192130,1.35640758,4633.5,4632.8,0.66]
[1755874192331,1.46440758,4633.5,4632.8,0.108]
[1755874192535,1.46440758,4633.5,4631.7,0.457]
[1755874192536,0.108,4633.0,4632.5,0.66]
[1755874192740,0.35537317,4633.4,4632.5,0.66]
[1755874192936,0.108,4633.1,4632.4,0.108]
[1755874193647,0.108,4632.5,4631.8,0.108]
[1755874193834,5.89540758,4632.4,4631.9,0.66]
[1755874194016,5.89540758,4632.4,4629.8,12.81474032]
[1755874194017,0.4359,4632.3,4630.2,0.457]
[1755874194219,0.02,4631.8,4631.1,0.108]
[1755874194519,4.558,4631.7,4631.1,0.108]
[1755874194746,4.23340758,4631.7,4631.1,0.108]
[1755874194914,4.23340758,4631.7,4630.8,0.02]
[1755874195127,4.23267288,4631.6,4630.8,0.02]
[1755874195333,4.23267288,4631.6,4631.0,0.66]
[1755874195515,3.90834576,4631.6,4631.0,0.66]
[1755874195847,0.02,4631.8,4630.8,0.02]
[1755874196148,4.23167288,4631.6,4630.9,0.66]
[1755874196355,1.33540758,4632.4,4631.1,0.66]
[1755874196651,5.89040758,4632.4,4631.3,0.66]
[1755874196949,1.01108046,4632.4,4632.3,2.81875483]
[1755874197137,4.555,4632.9,4632.5,0.66]
[1755874197538,4.23067288,4632.9,4631.8,2.81895717]
[1755874197753,4.23067288,4632.9,4630.8,0.02]
[1755874198051,4.23067288,4632.9,4630.7,2.15946592]
[1755874198358,4.553,4632.8,4630.8,2.15942058]
[1755874198516,4.553,4632.8,4630.4,0.457]
[1755874198874,0.002,4634.4,4632.0,2.15886293]
[1755874199034,1.66,4634.2,4632.1,0.21588629]
[1755874199216,1.66,4634.2,4631.9,0.457]
[1755874199217,4.552,4633.7,4631.9,0.457]
[1755874199420,4.552,4633.7,4632.1,2.15880322]
[1755874199641,4.552,4633.7,4631.9,0.457]
[1755874199922,4.552,4633.7,4632.4,0.66]
[1755874200423,4.551,4633.6,4632.4,0.66]
[1755874200623,4.55,4633.5,4632.5,0.02158661]
[1755874200853,4.55,4633.5,4631.2,12.81474032]
[1755874200854,0.002,4634.4,4633.7,2.15810259]
[1755874201108,0.002,4634.4,4633.7,9.49256485]
[1755874201369,2.711,4634.8,4633.8,0.66]
[1755874201533,2.711,4634.8,4632.7,0.66]
[1755874201732,2.711,4634.8,4633.5,0.66]
[1755874201940,0.4359,4634.7,4632.0,0.457]
[1755874202246,4.549,4634.6,4632.1,0.457]
[1755874202448,0.93439,4634.5,4631.4,0.457]
[1755874202661,0.4359,4634.4,4630.5,0.457]
[1755874202867,1.66,4634.3,4630.5,0.457]
[1755874203161,0.4359,4634.2,4630.5,0.457]
[1755874203364,0.4359,4634.2,4630.5,0.61595272]
[1755874203524,0.50959,4634.1,4630.7,2.15950072]
[1755874203874,4.9829,4634.0,4632.1,0.66]
[1755874204171,1.66,4634.3,4631.7,5.81903447]
[1755874204172,0.02,4631.8,4631.7,5.81903447]
[1755874204370,0.02,4632.8,4632.6,2.15860477]
[1755874204571,1.66,4633.8,4633.5,0.66]
[1755874204770,1.66,4633.8,4633.7,0.66]
[1755874205065,1.33573878,4633.8,4633.7,0.66]
[1755874205273,1.01147756,4633.8,4633.7,0.66]
[1755874205623,0.68721634,4633.8,4633.7,0.108]
[1755874205824,0.68721634,4633.8,4633.7,0.15819467]
[1755874206070,0.68721634,4633.8,4632.5,0.457]
[1755874206263,0.36295512,4633.8,4632.6,0.02158615]
[1755874206421,1.66,4634.9,4633.1,0.66]
[1755874206622,1.66,4634.9,4633.3,0.66]
[1755874206851,1.66,4634.9,4633.4,0.02158242]
[1755874207057,1.66,4634.9,4633.3,0.66]
[1755874207253,0.02,4633.8,4633.3,0.66]
[1755874207420,1.66,4634.9,4633.4,0.02158242]
[1755874207625,1.66,4634.9,4634.0,3.66]
[1755874207821,0.02,4636.8,4634.9,3.66]
[1755874207822,1.36175,4636.3,4634.9,3.66]
[1755874208022,1.36175,4636.3,4635.1,0.66]
[1755874208224,1.36175,4636.3,4635.0,0.66]
[1755874208423,1.36175,4636.3,4635.1,0.0215745]
[1755874208657,1.498125,4636.3,4634.3,0.66]
[1755874208825,1.498125,4636.3,4634.4,0.02157776]
[1755874209030,1.498125,4636.3,4634.2,0.66]
[1755874209537,1.498125,4636.3,4634.1,0.4605]
[1755874209538,0.02,4636.8,4634.9,3.66]
[1755874209866,0.02,4636.8,4635.5,3.66]
[1755874210034,1.613,4637.8,4635.5,3.66]
[1755874210360,0.4745,4637.7,4635.2,0.66]
[1755874210723,1.659,4638.0,4635.4,0.66]
[1755874210961,4.75135,4637.9,4635.6,0.66]
[1755874211258,4.538,4637.8,4635.6,0.66]
[1755874211470,5.0125,4637.8,4635.6,0.66]
[1755874211633,4.537,4637.7,4635.7,0.02157171]
[1755874211955,4.537,4637.8,4635.9,0.66]
[1755874212145,0.640935,4637.7,4635.9,1.97245777]
[1755874212762,0.640935,4637.7,4635.7,0.66]
[1755874213055,0.640935,4637.7,4635.8,0.4605]
[1755874213225,4.535,4637.6,4635.9,0.66]
[1755874213428,4.535,4637.6,4636.0,0.02157031]
[1755874213629,4.535,4637.6,4635.8,0.02]
[1755874213830,0.4745,4637.5,4635.8,0.02]
[1755874214042,0.4737,4637.5,4635.8,0.02]
[1755874214261,4.534,4637.4,4635.8,0.02]
[1755874214442,0.50077,4637.3,4635.8,0.02]
[1755874215867,1.659,4637.7,4637.3,0.66]
[1755874216233,0.4745,4637.6,4637.3,0.108]
[1755874216569,0.4745,4637.6,4637.0,0.108]
[1755874216867,4.53,4637.5,4637.1,0.66]
[1755874217039,5.14515924,4637.4,4637.1,0.66]
[1755874217942,4.529,4637.3,4637.1,0.66]
[1755874218355,0.61515924,4637.4,4637.1,0.66]
[1755874218554,1.767,4637.7,4637.2,0.02156473]
[1755874218555,4.528,4637.6,4637.2,0.02156473]
[1755874218755,1.659,4637.7,4637.4,0.66]
[1755874218966,1.659,4637.7,4637.5,0.02156334]
[1755874219151,1.659,4637.7,4637.6,0.768]
[1755874219353,1.659,4638.7,4637.6,0.5685]
[1755874219658,0.02,4638.8,4638.2,3.768]
[1755874219838,0.02,4638.8,4638.4,0.66]
[1755874220036,0.02,4638.8,4638.7,0.768]
[1755874220265,0.02,4638.8,4638.7,0.108]
[1755874220858,4.546,4638.8,4638.7,0.108]
[1755874221045,4.546,4638.8,4637.1,0.66]
[1755874221046,0.002,4638.4,4637.1,0.66]
[1755874221256,0.002,4638.4,4638.3,0.768]
[1755874221777,0.002,4638.4,4638.3,0.9291464]
[1755874221991,0.002,4638.4,4638.3,1.3896464]
[1755874222349,0.02,4638.8,4638.4,0.66]
[1755874222569,0.02,4638.8,4638.7,16.47474032]
[1755874222903,0.108,4640.9,4638.8,3.66]
[1755874223208,1.658,4642.2,4639.9,3.66]
[1755874223209,4.522,4642.0,4639.9,3.66]
[1755874223345,4.522,4642.0,4639.9,0.768]
[1755874223346,1.658,4640.6,4639.9,0.768]
[1755874224086,1.658,4640.6,4639.9,0.66]
[1755874224286,1.658,4640.6,4639.9,1.1205]
[1755874224485,1.658,4640.6,4639.9,1.23255]
[1755874224686,0.02,4641.8,4640.0,0.66]
[1755874224909,0.02,4641.8,4640.5,3.66]
[1755874225255,0.02,4641.8,4640.7,0.66]
[1755874225678,0.02,4641.8,4640.7,0.18175387]
[1755874225878,0.4945,4640.8,4639.8,0.02155265]
[1755874226084,2.1525,4640.8,4638.8,0.18184682]
[1755874226315,0.21445,4640.7,4638.7,13.27524032]
[1755874226487,0.21445,4640.7,4638.7,12.81474032]
[1755874226684,1.678,4640.8,4639.6,12.81474032]
[1755874226912,1.68,4640.8,4639.7,4.123401]
[1755874227134,1.68,4640.8,4638.7,13.27524032]
[1755874227420,0.4745,4640.7,4638.2,2.1185]
[1755874227636,4.516,4640.6,4637.3,0.4605]
[1755874227934,5.65655,4640.5,4637.4,0.18168255]
[1755874228223,0.4745,4640.4,4637.3,0.16140788]
[1755874228425,0.4745,4640.4,4637.9,12.81474032]
[1755874228750,1.68,4640.8,4638.1,0.66]
[1755874228899,4.514,4640.7,4638.3,3.66]
[1755874229106,0.66685,4640.7,4639.1,0.66]
[1755874229348,0.4745,4640.6,4637.9,13.27524032]
[1755874229642,0.4745,4640.6,4638.0,0.66]
[1755874229936,0.33735679,4640.4,4637.9,12.81474032]
[1755874230135,0.33735679,4640.4,4638.7,12.81474032]
[1755874230814,4.9865,4640.3,4637.0,12.81474032]
[1755874231010,1.17258568,4640.2,4637.1,0.20394865]
[1755874231210,0.4745,4640.1,4637.1,0.18238345]
[1755874231531,0.4745,4640.1,4637.0,14.11622375]
[1755874231532,2.15543144,4639.5,4637.0,12.81474032]
[1755874231732,2.1315,4639.4,4637.0,12.81474032]
[1755874231942,0.4745,4639.3,4637.1,0.0215652]